[Event "2nd Cambridge Open 2024"]
[Site "Cambridge"]
[Date "2024.02.23"]
[Round "7.5"]
[White "Gasanov, Eldar"]
[Black "Shafi, Declan"]
[Result "1-0"]
[ECO "E60"]
[WhiteElo "2487"]
[BlackElo "2219"]
[Annotator "TA"]
[PlyCount "109"]
[EventDate "2024.02.18"]
[EventType "swiss"]
[EventCountry "ENG"]
[SourceTitle "playchess.com"]
[Source "ChessBase"]
[SourceQuality "1"]
[TimeControl "5400+30"]

{[%evp 20,109,90,76,77,79,99,73,96,100,106,100,93,90,114,91,208,144,116,102,226,116,112,95,186,187,183,171,276,97,76,79,103,31,40,29,137,123,135,123,135,129,136,118,131,78,69,72,116,118,119,100,87,84,304,283,309,281,619,621,506,295,280,151,407,355,283,200,556,777,710,699,772,777,29977,29979,29974,12800,5110,4710,4133,760,29984,29984,29984,29985,29985,29986,29986,29987,29989,29990]} 1. d4 {[%emt 0:00:34]} Nf6 {[%emt 0:00:05]} 2. c4 {[%emt 0:00:21]} g6 {[%emt 0:00:06]} 3. f3 {[%emt 0:00:18]} Nh5 {[%emt 0:06:32]} 4. e4 {[%emt 0:00:33]} e5 {[%emt 0:00:54]} 5. Be3 {[%emt 0:00:09]} Bb4+ {[%emt 0:04:24]} 6. Nc3 {[%emt 0:00:25]} O-O {[%emt 0:01:14]} 7. dxe5 {[%emt 0:10:04]} Nc6 {[%emt 0:05:43]} 8. Qd2 {[%emt 0:14:50]} Nxe5 {[%emt 0:07:20]} 9. a3 {[%emt 0:01:45]} Bxc3 {[%emt 0:03:18]} 10. Qxc3 {[%emt 0:00:06]} Qf6 {[%emt 0:02:55]} 11. O-O-O {[%emt 0:02:48]} d6 {[%emt 0:01:22]} 12. Ne2 {[%emt 0:09:42]} a6 {[%emt 0:04:02]} 13. h4 {[%emt 0:05:40]} Be6 {[%emt 0:04:24]} 14. Bg5 {[%emt 0:04:01]} Qg7 {[%emt 0:00:52]} 15. g4 {[%emt 0:00:26]} Nf6 {[%emt 0:05:35]} 16. Nd4 {[%emt 0:03:39]} Nfd7 {[%emt 0:02:41]} 17. Kb1 {[%emt 0:04:53]} c5 {[%emt 0:09:07]} (17... Nc5 $16) 18. Nxe6 {[%emt 0:05:55]} fxe6 {[%emt 0:00:05]} 19. f4 {[%emt 0:10:59]} (19. Rxd6 Rxf3 20. Qd2 (20. Rxd7 $2 Qxd7 21. Qxe5 Rxf1+ 22. Rxf1 Qd3+ 23. Ka2 Qxc4+ 24. b3 Qxf1 $19) 20... Re8 $14) 19... Nxg4 {[%emt 0:05:17]} (19... h6 $16 {was called for.}) 20. Qxg7+ {[%emt 0:00:24]} (20. Rxd6 Qxc3 21. bxc3 Ndf6 $11) (20. Qf3 $1 $18 {[%cal Rf3g4]} h5 21. Bh3 (21. Rxd6 e5 $18)) 20... Kxg7 $16 {[%emt 0:00:09]} 21. Rxd6 {[%emt 0:00:11]} Rf7 {[%emt 0:01:11]} (21... Ndf6 $16) 22. Bh3 $1 $18 {[%emt 0:01:25]} (22. Rxe6 $6 h6 23. Rg1 hxg5 24. Rxg4 Nf8 $16) 22... h5 {[%emt 0:18:26]} 23. Rxe6 {[%emt 0:01:49]} Ndf6 {[%emt 0:04:11]} (23... Nf8 {keeps fighting.} 24. Bxg4 hxg4) 24. Bxf6+ $2 {[%emt 0:03:37]} (24. Rg1 $18 {is more deadly.}) 24... Rxf6 $16 {[%emt 0:00:27]} 25. Re7+ {[%emt 0:02:27]} Kf8 {[%emt 0:03:44]} 26. Rxb7 {[%emt 0:06:15]} ({White should play} 26. Rh7 $16 {Strongly threatening Rh8+.} Nf2 27. Rh8+ Ke7 28. Rxa8 Nxh1 29. e5 (29. f5 gxf5 30. e5 Re6 $16) 29... Rxf4 30. Ra7) 26... Nf2 $1 $14 {[%emt 0:00:35]} 27. Rh2 {[%emt 0:00:57]} Rxf4 {[%emt 0:00:15]} (27... Nxe4 $11 {remains equal.} 28. Rd7 Rxf4) 28. Be6 $16 {[%emt 0:02:07]} Nxe4 {[%emt 0:02:05]} 29. Bd5 {[%emt 0:02:01]} Re8 {[%emt 0:00:26]} 30. Rg2 {[%emt 0:01:45]} Rf6 {[%emt 0:00:41] [#]} 31. Rc7 $1 {[%emt 0:00:20]} Nf2 {[%emt 0:02:45]} 32. Ka2 {[%emt 0:03:27]} (32. Rxc5 Nd3 33. Rc6 Rf1+ 34. Kc2 (34. Ka2 $2 Nc1+ 35. Kb1 Nb3+ 36. Ka2 Re3 $19) 34... Ne1+ 35. Kc3 Nxg2 36. Bxg2 Rf2 37. Rxg6 Ree2 $11) (32. Rg3 $142 {[%cal Og3b3] aiming for Rb3!} Ng4 33. Rb3 (33. Rxc5 Re3 $16)) 32... Nd3 $16 {[%emt 0:00:27]} 33. Kb3 $1 {[%emt 0:01:38]} Rb8+ {[%emt 0:00:46]} 34. Kc3 {[%emt 0:00:33]} Nf4 {[%emt 0:00:36]} 35. Rd2 {[%emt 0:00:16]} Nxd5+ {[%emt 0:01:22]} 36. cxd5 {[%emt 0:00:04]} Rf3+ $2 {[%emt 0:02:12]} (36... Rf4 $16) 37. Kc4 $18 {[%emt 0:00:28]} Rf4+ {[%emt 0:00:59]} 38. Kxc5 {[%emt 0:00:24]} Rb5+ $2 {[%emt 0:00:11]} (38... Ke8 39. b4 Rxh4 40. Re2+ Kf8) 39. Kc6 $18 {[%emt 0:00:34]} Rc4+ {[%emt 0:00:34]} 40. Kd6 {[%emt 0:00:47]} Rxh4 {[%emt 0:00:52]} 41. Ke6 {[%emt 0:01:27]} (41. Rf2+ Kg8 $16) ({Better is} 41. Kd7 $18 Rf4 42. Rc8+ Kg7 43. d6) 41... Rb8 $2 {[%emt 0:01:37]} (41... Re4+ $16 {might work better.} 42. Kf6 Ke8) 42. d6 {[%emt 0:00:23]} Re4+ {[%emt 0:00:13]} 43. Kf6 {[%emt 0:00:07]} Rd8 $2 {[%emt 0:00:29]} (43... Ke8 44. Rh7 (44. Kxg6 Re6+ 45. Kf5 Rh6 $18) 44... Kd8) 44. d7 $18 {[%emt 0:00:58]} ({Inferior is} 44. Kxg6 Re6+ 45. Kxh5 (45. Kh7 Rdxd6 46. Rxd6 Rxd6 $11) 45... Rdxd6 46. Rxd6 Rxd6 $11) 44... Rf4+ {[%emt 0:00:12]} 45. Ke6 {[%emt 0:00:09]} ({Less strong is} 45. Kxg6 Ke7 $14) 45... Re4+ {[%emt 0:00:09]} 46. Kd6 {[%emt 0:00:01]} Re7 {[%emt 0:00:40]} 47. Rf2+ {[%emt 0:00:22]} Rf7 {[%emt 0:00:07]} 48. Rc8 {[%emt 0:00:39]} (48. Rxf7+ $142 Kxf7 49. Rc8 Rxd7+ 50. Kxd7 g5 51. Kc6 g4 52. Rh8 Kg6 53. Kb6 (53. b4 g3 $18)) 48... Rxf2 $18 {[%emt 0:00:10]} 49. Rxd8+ {[%emt 0:00:02]} Kg7 {[%emt 0:00:40] [#]} 50. Rg8+ {[%emt 0:00:22]} (50. Rc8 $142 $3 {[%mdl 512]} Rxb2 (50... Rd2+ 51. Kc6) 51. d8=Q Rd2+ 52. Ke5 Rxd8 53. Rxd8) 50... Kh6 {[%emt 0:00:31]} 51. Rh8+ {[%emt 0:00:09]} Kg7 {[%emt 0:00:07]} 52. d8=Q {[%emt 0:00:09]} Rd2+ {[%emt 0:00:07]} 53. Ke5 {[%emt 0:00:10]} Rxd8 {[%emt 0:00:13]} 54. Rxd8 {[%emt 0:00:02]} Kh6 {[%emt 0:00:16]} 55. Kf6 {[%emt 0:00:04]} 1-0

[Event "2nd Cambridge Open 2024"]
[Site "Cambridge"]
[Date "2024.02.23"]
[Round "7.6"]
[White "Turner, Matthew J"]
[Black "Dishman, Stephen"]
[Result "1-0"]
[ECO "A11"]
[WhiteElo "2448"]
[BlackElo "2273"]
[Annotator "TA"]
[PlyCount "107"]
[EventDate "2024.02.18"]
[EventType "swiss"]
[EventCountry "ENG"]
[SourceTitle "playchess.com"]
[Source "ChessBase"]
[SourceQuality "1"]
[TimeControl "5400+30"]

{[%evp 10,107,2,8,9,9,7,5,4,16,20,7,20,7,18,10,10,0,0,0,0,0,14,10,11,11,8,20,16,6,15,10,19,13,0,0,0,0,0,0,0,0,0,0,76,68,109,125,110,95,87,90,93,76,85,90,80,50,53,50,58,56,53,67,57,65,62,41,35,29,119,125,125,119,120,119,119,119,387,374,699,689,1205,1155,1134,992,624,231,231,231,29972,29964,29977,29979,29979,29980,29980,29981,29981,29982]} 1. Nf3 {[%emt 0:00:07]} d5 {[%emt 0:00:16]} 2. g3 {[%emt 0:00:19]} Bg4 {[%emt 0:00:16]} 3. Bg2 {[%emt 0:00:15]} c6 {[%emt 0:00:21]} 4. O-O {[%emt 0:00:45]} e6 {[%emt 0:00:46]} 5. d3 {[%emt 0:00:38]} Bd6 {[%emt 0:00:42]} 6. c4 {[%emt 0:02:54]} Nf6 {[%emt 0:00:20]} 7. Qb3 {[%emt 0:01:05]} Qb6 {[%emt 0:00:37]} 8. Be3 {[%emt 0:02:28]} Qxb3 {[%emt 0:00:07] The position is equal.} 9. axb3 {[%emt 0:00:00]} Nbd7 {[%emt 0:00:00]} 10. h3 {[%emt 0:04:44]} Bxf3 {[%emt 0:00:37]} 11. Bxf3 {[%emt 0:00:11]} O-O {[%emt 0:07:47]} 12. Nc3 {[%emt 0:03:04]} (12. Rxa7 Rxa7 13. Bxa7 b6 $17) 12... a5 {[%emt 0:02:23]} 13. Na4 {[%emt 0:04:35]} Bb4 {[%emt 0:06:13]} 14. Rfc1 {[%emt 0:01:28]} Rfc8 {[%emt 0:01:15]} 15. Rc2 {[%emt 0:03:15]} b5 {[%emt 0:13:05]} 16. Nc3 {[%emt 0:03:25]} bxc4 {[%emt 0:07:35]} 17. bxc4 {[%emt 0:00:12]} dxc4 {[%emt 0:02:34]} 18. dxc4 {[%emt 0:00:36]} Ne5 {[%emt 0:00:30]} 19. Na4 {[%emt 0:01:27] [#] Nb6 is the strong threat.} Nxf3+ $1 {[%emt 0:00:47]} 20. exf3 {[%emt 0:00:05] Black must now prevent Nb6.} Rd8 {[%emt 0:01:16]} 21. Kg2 {[%emt 0:01:11]} h6 {[%emt 0:10:27]} 22. Bb6 {[%emt 0:02:38]} Rd3 {[%emt 0:04:07]} 23. Nc5 {[%emt 0:01:59]} Bxc5 {[%emt 0:03:13]} 24. Bxc5 {[%emt 0:00:06]} Nd7 {[%emt 0:01:13]} 25. Be3 {[%emt 0:00:20]} a4 {[%emt 0:02:16]} 26. f4 {[%emt 0:05:20]} a3 {[%emt 0:05:23]} (26... Kf8 $11 {remains equal.}) 27. bxa3 $16 {[%emt 0:03:39]} Rdxa3 {[%emt 0:04:57]} 28. Rxa3 {[%emt 0:00:32]} Rxa3 {[%emt 0:00:03][%mdl 4096] Endgame. KRB-KRN} 29. Rd2 {[%emt 0:00:10]} Nf6 {[%emt 0:01:02]} 30. Rd8+ {[%emt 0:00:19]} Kh7 {[%emt 0:00:07]} 31. Rc8 {[%emt 0:00:11]} Ra6 {[%emt 0:01:16]} 32. Kf3 {[%emt 0:01:25]} h5 {[%emt 0:00:45]} 33. Ke2 {[%emt 0:06:02] White is more active.} Kg6 {[%emt 0:00:46]} 34. Kd3 {[%emt 0:00:53]} Kf5 {[%emt 0:02:25]} 35. Kd4 {[%emt 0:02:33]} Nd7 $1 {[%emt 0:03:19]} 36. Rc7 {[%emt 0:01:13]} e5+ {[%emt 0:06:59]} 37. fxe5 {[%emt 0:00:43]} Nxe5 {[%emt 0:03:14]} 38. f4 {[%emt 0:03:27]} Nf3+ {[%emt 0:01:06]} 39. Kd3 {[%emt 0:00:13]} Ne1+ {[%emt 0:02:46]} (39... f6 $11 {keeps the balance.}) 40. Ke2 {[%emt 0:01:42]} Nc2 {[%emt 0:00:49]} 41. Rxf7+ {[%emt 0:02:12]} Kg6 {[%emt 0:00:33]} 42. Ra7 {[%emt 0:00:31]} Rxa7 {[%emt 0:02:15]} 43. Bxa7 {[%emt 0:00:06] [#] And now g4 would win. KB-KN} Nb4 $2 {[%emt 0:03:07][%mdl 8192] Black cannot hold the game after this.} (43... Kf5 $16) 44. Kf3 $18 {[%emt 0:02:39]} Kf5 $2 {[%emt 0:01:09]} (44... Kf7 45. Ke4 Na2) 45. g4+ {[%emt 0:00:12]} hxg4+ {[%emt 0:00:06]} 46. hxg4+ {[%emt 0:00:03]} Ke6 {[%emt 0:00:08]} 47. f5+ {[%emt 0:03:43]} Ke5 {[%emt 0:01:27]} 48. Bb8+ {[%emt 0:00:36]} Kf6 {[%emt 0:01:20]} 49. Ke4 {[%emt 0:00:37] Inhibits Nd3.} Nc2 $2 {[%emt 0:00:40]} (49... g6 $18 50. Be5+ Kf7) 50. Be5+ {[%emt 0:01:31] White mates.} Kf7 {[%emt 0:00:04]} 51. Bc3 {[%emt 0:00:22]} g6 {[%emt 0:00:37]} 52. Kd3 {[%emt 0:00:26]} Na3 {[%emt 0:00:12]} 53. Bb2 {[%emt 0:00:30]} gxf5 {[%emt 0:01:03]} 54. gxf5 {[%emt 0:00:36] Weighted Error Value: White=0.02 (flawless) /Black=0.35.  Loses game:     	---       	Black=1      Mistake:       	---       	Black=4      Inaccurate:     	White=1     	Black=2      OK:         	White=16    	Black=18     Best:        	White=6     	Black=4      Strong:       	---       	Black=2} 1-0

[Event "2nd Cambridge Open 2024"]
[Site "Cambridge"]
[Date "2024.02.23"]
[Round "7.7"]
[White "Wadsworth, Matthew J"]
[Black "Saine, Zachary"]
[Result "1-0"]
[ECO "E01"]
[WhiteElo "2450"]
[BlackElo "1978"]
[Annotator "RC"]
[PlyCount "87"]
[EventDate "2024.02.18"]
[EventType "swiss"]
[EventCountry "ENG"]
[SourceTitle "playchess.com"]
[Source "ChessBase"]
[SourceQuality "1"]
[TimeControl "5400+30"]

1. d4 {[%emt 0:00:02]} d5 {[%emt 0:00:09]} 2. c4 {[%emt 0:00:06]} e6 {[%emt 0:00:04]} 3. Nf3 {[%emt 0:00:06]} c6 {[%emt 0:00:05]} 4. Nbd2 {[%emt 0:00:11]} Nf6 {[%emt 0:00:59]} 5. g3 {[%emt 0:02:36]} Nbd7 {[%emt 0:00:05]} 6. Bg2 {[%emt 0:00:30]} Bd6 {[%emt 0:00:05]} 7. O-O {[%emt 0:00:44]} O-O {[%emt 0:00:38]} 8. b3 {[%emt 0:00:41]} e5 {[%emt 0:04:30]} 9. dxe5 {[%emt 0:05:22]} Nxe5 {[%emt 0:00:30]} 10. cxd5 {[%emt 0:00:55]} Nxd5 {[%emt 0:02:20]} 11. Bb2 {[%emt 0:00:13]} Qe7 {[%emt 0:07:34]} 12. Nxe5 {[%emt 0:06:06]} Bxe5 {[%emt 0:00:26]} 13. Bxe5 {[%emt 0:00:05]} Qxe5 {[%emt 0:00:13]} 14. Nc4 {[%emt 0:00:06]} Qe7 {[%emt 0:13:21]} 15. Bxd5 {[%emt 0:09:00]} cxd5 {[%emt 0:00:07]} 16. Ne3 {[%emt 0:00:04]} Rd8 {[%emt 0:12:09]} 17. Qd4 {[%emt 0:00:39]} Bh3 {[%emt 0:04:31]} 18. Rfd1 {[%emt 0:00:57]} b6 {[%emt 0:20:46]} 19. Rac1 {[%emt 0:00:29]} Qe4 {[%emt 0:03:48]} 20. Rc7 {[%emt 0:02:54]} Qxd4 {[%emt 0:06:53]} 21. Rxd4 {[%emt 0:00:29]} Rdc8 {[%emt 0:01:09]} 22. Rxc8+ {[%emt 0:03:14]} Rxc8 {[%emt 0:00:04]} 23. Rxd5 {[%emt 0:00:14]} Rc1+ {[%emt 0:00:32]} 24. Rd1 {[%emt 0:00:16]} Rxd1+ {[%emt 0:00:07]} 25. Nxd1 {[%emt 0:00:06]} Kf8 {[%emt 0:01:45]} 26. f3 {[%emt 0:00:32]} Be6 {[%emt 0:00:18]} 27. Kf2 {[%emt 0:00:10]} Ke7 {[%emt 0:00:06]} 28. Ke3 {[%emt 0:00:11]} Kd6 {[%emt 0:00:43]} 29. Kd4 {[%emt 0:00:07]} a5 {[%emt 0:00:32]} 30. e4 {[%emt 0:05:14]} a4 {[%emt 0:05:47]} 31. bxa4 {[%emt 0:04:04]} Bxa2 {[%emt 0:00:05]} 32. Nb2 {[%emt 0:00:34]} Kc6 {[%emt 0:02:26]} 33. Kc3 {[%emt 0:00:37]} Bb1 {[%emt 0:04:30]} 34. Nc4 {[%emt 0:00:50]} Kc5 {[%emt 0:02:16]} 35. Nd2 {[%emt 0:01:27]} Ba2 {[%emt 0:00:08]} 36. Nb3+ {[%emt 0:00:41]} Kc6 {[%emt 0:02:36]} 37. Kb2 {[%emt 0:03:04]} Bxb3 {[%emt 0:00:04]} 38. Kxb3 {[%emt 0:00:05]} Kc5 {[%emt 0:00:03]} 39. f4 {[%emt 0:00:51]} h6 {[%emt 0:05:34]} 40. e5 {[%emt 0:01:00]} h5 {[%emt 0:01:16]} 41. Kc3 {[%emt 0:01:20]} b5 {[%emt 0:00:40]} 42. a5 {[%emt 0:00:35]} b4+ {[%emt 0:00:12]} 43. Kb3 {[%emt 0:00:02]} Kb5 {[%emt 0:00:01]} 44. f5 {[%emt 0:00:12]} 1-0

[Event "2nd Cambridge Open 2024"]
[Site "Cambridge"]
[Date "2024.02.23"]
[Round "7.8"]
[White "Wachinger, Nikolas"]
[Black "Vardanyan, Aras"]
[Result "1/2-1/2"]
[ECO "B23"]
[WhiteElo "2437"]
[BlackElo "2284"]
[Annotator "RC"]
[PlyCount "123"]
[EventDate "2024.02.18"]
[EventType "swiss"]
[EventCountry "ENG"]
[SourceTitle "playchess.com"]
[Source "ChessBase"]
[SourceQuality "1"]
[TimeControl "5400+30"]

1. e4 {[%emt 0:05:08]} c5 {[%emt 0:00:06]} 2. Nc3 {[%emt 0:00:43]} d6 {[%emt 0:00:15]} 3. Bb5+ {[%emt 0:00:13]} Bd7 {[%emt 0:02:29]} 4. f4 {[%emt 0:00:42]} Bxb5 {[%emt 0:03:40]} 5. Nxb5 {[%emt 0:00:03]} Nc6 {[%emt 0:00:07]} 6. c4 {[%emt 0:03:01]} g6 {[%emt 0:01:42]} 7. Nf3 {[%emt 0:00:33]} Bg7 {[%emt 0:00:10]} 8. O-O {[%emt 0:00:08]} a6 {[%emt 0:05:39]} 9. Nc3 {[%emt 0:00:12]} Nf6 {[%emt 0:00:18]} 10. d3 {[%emt 0:00:53]} O-O {[%emt 0:00:32]} 11. Kh1 {[%emt 0:04:47]} Qd7 {[%emt 0:05:18]} 12. Be3 {[%emt 0:03:13]} b5 {[%emt 0:05:38]} 13. Qe2 {[%emt 0:10:35]} Rab8 {[%emt 0:05:11]} 14. Rad1 {[%emt 0:03:24]} e6 {[%emt 0:19:38]} 15. h3 {[%emt 0:42:34]} Qb7 {[%emt 0:10:36]} 16. Rd2 {[%emt 0:03:25]} Nh5 {[%emt 0:04:59]} 17. Kh2 {[%emt 0:00:55]} Nd4 {[%emt 0:01:20]} 18. Qf2 {[%emt 0:00:42]} f5 {[%emt 0:08:45]} 19. Nxd4 {[%emt 0:08:43]} cxd4 {[%emt 0:00:12]} 20. Bxd4 {[%emt 0:00:02]} e5 {[%emt 0:01:05]} 21. fxe5 {[%emt 0:00:22]} fxe4 {[%emt 0:00:27]} 22. Qe1 {[%emt 0:00:41]} exd3 {[%emt 0:05:43]} 23. Rxf8+ {[%emt 0:02:58]} Rxf8 {[%emt 0:00:15]} 24. cxb5 {[%emt 0:00:29]} dxe5 {[%emt 0:01:16]} 25. Bc5 {[%emt 0:00:14]} Rc8 {[%emt 0:03:21]} 26. Ne4 {[%emt 0:03:07]} Qxb5 {[%emt 0:01:00]} 27. Qe3 {[%emt 0:01:19]} Nf6 {[%emt 0:03:57]} 28. b4 {[%emt 0:01:17]} Nxe4 {[%emt 0:00:38]} 29. Qxe4 {[%emt 0:00:02]} Rd8 {[%emt 0:00:23]} 30. a4 {[%emt 0:00:30]} Qd7 {[%emt 0:03:23]} 31. Be3 {[%emt 0:04:23]} Qd5 {[%emt 0:01:04]} 32. Qxd5+ {[%emt 0:00:03]} Rxd5 {[%emt 0:00:05]} 33. Kg3 {[%emt 0:00:52]} e4 {[%emt 0:05:15]} 34. Kf4 {[%emt 0:00:04]} Re5 {[%emt 0:00:05]} 35. Bd4 {[%emt 0:00:30]} Re6 {[%emt 0:00:50]} 36. Bxg7 {[%emt 0:00:12]} Kxg7 {[%emt 0:00:08]} 37. Ke3 {[%emt 0:00:21]} Kf6 {[%emt 0:00:08]} 38. b5 {[%emt 0:00:17]} axb5 {[%emt 0:01:11]} 39. axb5 {[%emt 0:00:02]} Ke7 {[%emt 0:00:46]} 40. Rb2 {[%emt 0:02:06]} Kd7 {[%emt 0:00:13]} 41. b6 {[%emt 0:00:13]} Kc8 {[%emt 0:00:12]} 42. b7+ {[%emt 0:00:04]} Kb8 {[%emt 0:00:03]} 43. h4 {[%emt 0:01:13]} h5 {[%emt 0:00:56]} 44. Rb5 {[%emt 0:00:34]} Re7 {[%emt 0:01:00]} 45. Rd5 {[%emt 0:01:11]} Kxb7 {[%emt 0:00:14]} 46. Rd6 {[%emt 0:00:00]} Kc7 {[%emt 0:00:55]} 47. Rxg6 {[%emt 0:00:00]} Rd7 {[%emt 0:00:23]} 48. Ra6 {[%emt 0:00:49]} d2 {[%emt 0:01:21]} 49. Ra7+ {[%emt 0:00:01]} Kc6 {[%emt 0:00:06]} 50. Rxd7 {[%emt 0:00:04]} Kxd7 {[%emt 0:00:02]} 51. Kxd2 {[%emt 0:00:04]} Ke6 {[%emt 0:01:09]} 52. Ke3 {[%emt 0:01:25]} Kf5 {[%emt 0:01:22]} 53. Kf2 {[%emt 0:00:16]} Kf4 {[%emt 0:00:49]} 54. Ke2 {[%emt 0:00:03]} Kf5 {[%emt 0:00:33]} 55. Kf2 {[%emt 0:00:11]} Ke5 {[%emt 0:00:21]} 56. Ke3 {[%emt 0:00:13]} Kd5 {[%emt 0:00:18]} 57. g4 {[%emt 0:01:09]} hxg4 {[%emt 0:00:09]} 58. h5 {[%emt 0:00:06]} Ke5 {[%emt 0:00:40]} 59. h6 {[%emt 0:00:07]} Kf6 {[%emt 0:00:03]} 60. Kxe4 {[%emt 0:00:08]} Kg6 {[%emt 0:00:04]} 61. Kf4 {[%emt 0:00:09]} Kxh6 {[%emt 0:00:14]} 62. Kxg4 {[%emt 0:03:45]} 1/2-1/2

[Event "2nd Cambridge Open 2024"]
[Site "Cambridge"]
[Date "2024.02.23"]
[Round "7.9"]
[White "Hanley, Craig A"]
[Black "Fava, Lorenzo"]
[Result "1/2-1/2"]
[ECO "D05"]
[WhiteElo "2431"]
[BlackElo "2084"]
[Annotator "TA"]
[PlyCount "91"]
[EventDate "2024.02.18"]
[EventType "swiss"]
[EventCountry "ENG"]
[SourceTitle "playchess.com"]
[Source "ChessBase"]
[SourceQuality "1"]
[TimeControl "5400+30"]

{[%evp 12,91,14,6,55,27,57,46,59,44,66,11,41,66,47,49,50,60,42,8,31,0,8,0,0,0,0,0,0,-7,0,-9,0,0,0,0,35,13,26,5,23,10,26,18,119,94,113,17,19,6,13,6,8,14,81,13,8,12,12,14,10,8,15,4,4,3,2,2,5,0,0,0,0,0,0,0,0,0,0,0,0,0]} 1. Nf3 {[%emt 0:00:04]} d5 {[%emt 0:03:24]} 2. d4 {[%emt 0:00:25]} e6 {[%emt 0:01:40]} 3. e3 {[%emt 0:01:31]} Nf6 {[%emt 0:02:27]} 4. Bd3 {[%emt 0:01:03]} c5 {[%emt 0:00:36]} 5. b3 {[%emt 0:02:25]} Nbd7 {[%emt 0:01:18]} 6. O-O {[%emt 0:00:41]} Bd6 {[%emt 0:01:14]} 7. Bb2 {[%emt 0:00:59]} Qc7 {[%emt 0:01:04]} (7... b6 $11 {feels stronger.}) 8. Nbd2 {[%emt 0:08:48]} e5 {[%emt 0:02:43]} 9. dxe5 {[%emt 0:02:29]} Nxe5 {[%emt 0:00:05] White is slightly better.} 10. Nxe5 {[%emt 0:00:49]} Bxe5 {[%emt 0:00:05]} 11. Bb5+ {[%emt 0:03:00]} ({Better is} 11. Bxe5 $14 Qxe5 12. c4) 11... Bd7 {[%emt 0:00:46]} 12. Bxe5 {[%emt 0:00:39]} Qxe5 {[%emt 0:00:04]} 13. Bxd7+ {[%emt 0:02:31]} Nxd7 {[%emt 0:00:05]} 14. c4 {[%emt 0:00:53]} Nf6 {[%emt 0:03:21]} 15. Nf3 {[%emt 0:02:57]} Qe6 {[%emt 0:03:56] [#]} 16. b4 $1 {[%emt 0:21:25]} dxc4 {[%emt 0:25:15]} 17. bxc5 {[%emt 0:09:52]} O-O {[%emt 0:00:49]} 18. Rb1 {[%emt 0:05:52]} Rac8 {[%emt 0:11:51]} 19. Nd4 {[%emt 0:02:06]} Qd5 {[%emt 0:02:23][%cal Of6e4]} 20. c6 {[%emt 0:00:44]} bxc6 {[%emt 0:00:37]} 21. Qc2 {[%emt 0:01:11]} Rb8 {[%emt 0:03:06]} 22. Rbc1 {[%emt 0:01:09]} Ne4 {[%emt 0:03:10]} 23. Rfd1 {[%emt 0:01:09]} (23. Qxc4 $2 {too greedy.} Qxc4 24. Rxc4 Nd2 $19) 23... Nd6 {[%emt 0:00:10]} 24. Nf3 {[%emt 0:06:24][%mdl 1024] White has compensation.} Qc5 {[%emt 0:02:03]} 25. h4 {[%emt 0:04:53]} h6 {[%emt 0:06:21]} 26. Rd4 {[%emt 0:02:54]} Qa3 {[%emt 0:05:20]} 27. Qd1 {[%emt 0:06:03]} Nf5 {[%emt 0:01:56]} (27... Rbd8 $11) 28. Rdxc4 $16 {[%emt 0:00:32]} Qxa2 {[%emt 0:00:46]} 29. Ra4 {[%emt 0:02:04]} ({But not} 29. Rxc6 Rfd8 30. Qc2 Qxc2 31. R6xc2 Ra8 $14) (29. Qd7 $1 $16 {[%cal Rd7f5]} g6 30. h5 (30. Rxc6 Rb2 $14) (30. Qxc6 Rb6 $14)) 29... Qe6 $11 {[%emt 0:00:51]} 30. Qc2 {[%emt 0:02:37][%cal Oa4e4]} Rfc8 {[%emt 0:04:51]} 31. Qc5 {[%emt 0:01:09]} Rb5 {[%emt 0:05:49]} 32. Qxa7 {[%emt 0:00:19] Threatens to win with e4.} Rcb8 {[%emt 0:00:22]} (32... c5 $11 {keeps the balance.}) 33. Nd4 {[%emt 0:02:53] White is more active.} (33. Rac4 $16) 33... Nxd4 {[%emt 0:01:32] The position is equal.} 34. Qxd4 {[%emt 0:05:00]} Rb1 {[%emt 0:00:45]} 35. Rxb1 {[%emt 0:00:00]} Rxb1+ {[%emt 0:00:02][%mdl 4096] Endgame. KQR-KQR} 36. Kh2 {[%emt 0:00:00]} Rb8 {[%emt 0:00:37] Repels Qd8+} (36... Rb5 {simplifies} 37. Qd3 Qf5 38. Qxf5 Rxf5 39. Kg3 Rc5) 37. Qc5 {[%emt 0:00:00]} Rb5 {[%emt 0:02:19]} 38. Ra8+ {[%emt 0:00:00]} Kh7 $132 {[%emt 0:00:02][%mdl 2048] Black puts up resistance} 39. Qc2+ {[%emt 0:00:00]} Qg6 {[%emt 0:01:01]} 40. e4 {[%emt 0:00:00]} (40. Qxg6+ {simplifies} Kxg6 41. g4 h5 42. g5) 40... Re5 {[%emt 0:02:57]} 41. Ra4 {[%emt 0:00:00]} Qg4 {[%emt 0:00:44]} 42. g3 {[%emt 0:00:00][%cal Oh2g2]} Qf3 {[%emt 0:01:13]} 43. Rc4 {[%emt 0:00:02]} f5 {[%emt 0:00:25]} 44. Rc3 {[%emt 0:00:49]} Qxe4 {[%emt 0:00:15]} 45. Qxe4 {[%emt 0:00:17]} Rxe4 {[%emt 0:00:17]} 46. Rxc6 {[%emt 0:00:04] Weighted Error Value: White=0.14 (very precise) /Black=0.15 (very precise) .  Mistake:       	White=3     	Black=2      Inaccurate:     	White=2     	Black=3      OK:         	White=16    	Black=15     Best:        	White=3     	Black=2} 1/2-1/2